[Event "EICC 2021"]
[Site "Reykjavik"]
[Date "2021.09.01"]
[Round "7.35"]
[White "Basso, Pier Luigi"]
[Black "Sousa, Andre Ventura"]
[Result "1-0"]
[ECO "D85"]
[WhiteElo "2541"]
[BlackElo "2405"]
[Annotator "ChessBase"]
[PlyCount "61"]
[EventDate "2021.08.26"]
[EventType "swiss"]
[EventCountry "ISL"]
[Tiebreak "Cut1 Buchholz"]
[SourceTitle "playchess.com"]
[Source "ChessBase"]
[SourceQuality "1"]
[TimeControl "40/5400+30:1800+30"]

1. d4 {[%emt 0:04:04]} Nf6 {[%emt 0:00:48]} 2. c4 {[%emt 0:00:57]} g6 {[%emt 0:
00:00]} 3. Nc3 {[%emt 0:00:06]} d5 {[%emt 0:00:00]} 4. cxd5 {[%emt 0:01:04]}
Nxd5 {[%emt 0:00:05]} 5. e4 {[%emt 0:00:07]} Nxc3 6. bxc3 {[%emt 0:00:10]} Bg7
{[%emt 0:00:00]} 7. Nf3 {[%emt 0:00:19]} c5 {[%emt 0:00:00]} 8. Bb5+ {[%emt 0:
00:33]} Nc6 {[%emt 0:00:00]} 9. d5 {[%emt 0:01:09]} Qa5 {[%emt 0:00:00]} 10.
Rb1 {[%emt 0:01:14]} a6 {[%emt 0:03:49]} 11. Ba4 {[%emt 0:00:45]} b5 {[%emt 0:
05:43]} 12. dxc6 {[%emt 0:01:04]} Bxc3+ {[%emt 0:01:17]} 13. Bd2 {[%emt 0:00:
10]} bxa4 {[%emt 0:00:02]} 14. Qc1 {[%emt 0:00:55]} Bxd2+ {[%emt 0:02:11]} 15.
Qxd2 {[%emt 0:00:07]} Qxd2+ {[%emt 0:08:06]} 16. Kxd2 {[%emt 0:00:05]} Be6 {
[%emt 0:00:38]} 17. Rhc1 {[%emt 0:00:16]} Bxa2 {[%emt 0:04:12]} 18. Rb7 {
[%emt 0:00:57]} Be6 {[%emt 0:18:56]} 19. Rxc5 {[%emt 0:02:48]} a3 {[%emt 0:01:
39]} 20. Ra5 {[%emt 0:08:57]} a2 {[%emt 0:00:36]} 21. Nd4 {[%emt 0:02:48]} Bc8
{[%emt 0:07:31]} 22. Rb4 {[%emt 0:29:59]} Kd8 {[%emt 0:03:40]} 23. f4 {[%emt 0:
07:20]} f6 {[%emt 0:07:35]} 24. Rxa2 {[%emt 0:02:09]} Re8 {[%emt 0:07:44]} 25.
e5 {[%emt 0:05:10]} fxe5 {[%emt 0:00:05]} 26. fxe5 {[%emt 0:00:03]} Rf8 {
[%emt 0:01:42]} 27. Ke3 {[%emt 0:00:48]} Rf1 {[%emt 0:00:50]} 28. Ke4 {[%emt 0:
10:51]} e6 {[%emt 0:09:27]} 29. Rab2 {[%emt 0:07:52]} Ra7 {[%emt 0:01:10]} 30.
Rb7 {[%emt 0:02:32]} Rf7 {[%emt 0:00:04]} 31. c7+ {[%emt 0:00:27]} 1-0

[Event "EICC 2021"]
[Site "Reykjavik"]
[Date "2021.09.01"]
[Round "7.36"]
[White "Juksta, Karolis"]
[Black "Suleymanli, Aydin"]
[Result "1/2-1/2"]
[ECO "D35"]
[WhiteElo "2438"]
[BlackElo "2536"]
[Annotator "ChessBase"]
[PlyCount "200"]
[EventDate "2021.08.26"]
[EventType "swiss"]
[EventCountry "ISL"]
[Tiebreak "Cut1 Buchholz"]
[SourceTitle "playchess.com"]
[Source "ChessBase"]
[SourceQuality "1"]
[TimeControl "40/5400+30:1800+30"]

1. d4 {[%emt 0:00:02]} d5 {[%emt 0:00:05]} 2. c4 {[%emt 0:00:08]} e6 {[%emt 0:
00:06]} 3. Nc3 {[%emt 0:00:09]} Be7 {[%emt 0:00:06]} 4. cxd5 {[%emt 0:00:25]}
exd5 {[%emt 0:00:05]} 5. Bf4 {[%emt 0:00:04]} Nf6 {[%emt 0:00:04]} 6. e3 {
[%emt 0:00:07]} Bf5 {[%emt 0:00:18]} 7. Qb3 {[%emt 0:01:09]} Nc6 {[%emt 0:00:
07]} 8. g4 {[%emt 0:02:06]} Nxg4 {[%emt 0:00:20]} 9. Qxd5 {[%emt 0:01:19]} Qxd5
{[%emt 0:00:05]} 10. Nxd5 {[%emt 0:00:03]} Bb4+ {[%emt 0:00:07]} 11. Nxb4 {
[%emt 0:00:05]} Nxb4 {[%emt 0:00:05]} 12. Rc1 {[%emt 0:01:45]} c6 {[%emt 0:00:
06]} 13. a3 {[%emt 0:02:14]} Nd5 {[%emt 0:00:09]} 14. h3 {[%emt 0:01:00]} Ngf6
{[%emt 0:00:41]} 15. Be5 {[%emt 0:00:54]} Nd7 {[%emt 0:00:45]} 16. Bd6 {
[%emt 0:01:41]} N7b6 {[%emt 0:00:56]} 17. Nf3 {[%emt 0:24:17]} O-O-O {[%emt 0:
05:27]} 18. Bg3 {[%emt 0:03:27]} f6 {[%emt 0:03:00]} 19. Nd2 {[%emt 0:01:53]}
Rhe8 {[%emt 0:01:37]} 20. Nc4 {[%emt 0:12:22]} Re6 {[%emt 0:05:31]} 21. Be2 {
[%emt 0:04:47]} Nxc4 {[%emt 0:00:47]} 22. Rxc4 {[%emt 0:04:28]} Rde8 {[%emt 0:
00:41]} 23. Bg4 {[%emt 0:11:08]} g6 {[%emt 0:02:44]} 24. Ke2 {[%emt 0:04:42]}
h5 {[%emt 0:01:36]} 25. Bxf5 {[%emt 0:00:14]} gxf5 {[%emt 0:00:06]} 26. Kf3 {
[%emt 0:02:05]} Kd7 {[%emt 0:02:43]} 27. Rg1 {[%emt 0:02:04]} Rg8 {[%emt 0:00:
23]} 28. Rcc1 {[%emt 0:01:37]} Re7 {[%emt 0:01:04]} 29. Bh2 {[%emt 0:01:08]}
Reg7 {[%emt 0:00:43]} 30. Rxg7+ {[%emt 0:00:08]} Rxg7 {[%emt 0:00:03]} 31. Bg3
{[%emt 0:02:24]} Ke6 {[%emt 0:04:20]} 32. Rc5 {[%emt 0:05:50]} Rg8 {[%emt 0:01:
08]} 33. Rc1 {[%emt 0:00:40]} a5 {[%emt 0:08:38]} 34. Rc5 {[%emt 0:07:42]} Ra8
{[%emt 0:00:00]} 35. a4 {[%emt 0:00:20]} Nb6 {[%emt 0:00:00]} 36. b3 {[%emt 0:
00:10]} Nd5 {[%emt 0:00:00]} 37. Ke2 {[%emt 0:01:12]} Kd7 {[%emt 0:00:00]} 38.
Kd3 {[%emt 0:01:05]} h4 {[%emt 0:00:00]} 39. Bxh4 {[%emt 0:01:09]} Rh8 {
[%emt 0:00:00]} 40. Bg3 {[%emt 0:00:11]} b6 {[%emt 0:00:00]} 41. Rc1 {[%emt 0:
04:29]} Rxh3 {[%emt 0:00:00]} 42. Re1 {[%emt 0:05:41]} f4 {[%emt 0:00:08]} 43.
exf4 {[%emt 0:00:07]} Nxf4+ {[%emt 0:00:02]} 44. Ke4 {[%emt 0:01:14]} Nd5 {
[%emt 0:00:01]} 45. Kf5 {[%emt 0:04:32]} Rh6 {[%emt 0:01:51]} 46. Rg1 {[%emt 0:
04:01]} Rh5+ {[%emt 0:01:58]} 47. Kg4 {[%emt 0:00:36]} Rg5+ {[%emt 0:00:13]}
48. Kf3 {[%emt 0:00:13]} Ne7 {[%emt 0:01:06]} 49. Rd1 {[%emt 0:13:19]} Rh5 {
[%emt 0:05:43]} 50. Ke4 {[%emt 0:00:26]} Nd5 {[%emt 0:00:24]} 51. Rg1 {[%emt 0:
01:07]} Ke6 {[%emt 0:03:16]} 52. Rc1 {[%emt 0:00:48]} Kd7 {[%emt 0:01:12]} 53.
Rg1 {[%emt 0:00:21]} Ne7 {[%emt 0:01:42]} 54. Rd1 {[%emt 0:00:41]} Rd5 {
[%emt 0:02:16]} 55. Rd3 {[%emt 0:00:45]} Nf5 {[%emt 0:00:48]} 56. Bf4 {[%emt 0:
00:55]} Ke6 {[%emt 0:00:31]} 57. Bc7 {[%emt 0:00:32]} b5 {[%emt 0:00:24]} 58.
axb5 {[%emt 0:00:33]} Rxb5 {[%emt 0:00:20]} 59. Rc3 {[%emt 0:00:41]} Kd7 {
[%emt 0:00:49]} 60. Rc5 {[%emt 0:00:42]} Nxd4 {[%emt 0:01:35]} 61. Rxb5 {
[%emt 0:00:04]} cxb5 {[%emt 0:00:18]} 62. Bxa5 {[%emt 0:00:41]} Nxb3 {[%emt 0:
00:06]} 63. Bb6 {[%emt 0:00:41]} Ke6 {[%emt 0:00:35]} 64. Kd3 {[%emt 0:00:28]}
Kd5 {[%emt 0:00:56]} 65. Kc3 {[%emt 0:00:23]} Nc5 {[%emt 0:00:32]} 66. Kb4 {
[%emt 0:00:20]} Nd7 {[%emt 0:00:10]} 67. Be3 {[%emt 0:00:27]} Kc6 {[%emt 0:00:
14]} 68. Bd4 {[%emt 0:00:12]} f5 {[%emt 0:01:36]} 69. Be3 {[%emt 0:01:14]} Nf6
{[%emt 0:02:40]} 70. Bd4 {[%emt 0:00:10]} Ng4 {[%emt 0:00:07]} 71. Ba7 {
[%emt 0:00:44]} Ne5 {[%emt 0:04:28]} 72. Be3 {[%emt 0:00:32]} Nf3 {[%emt 0:02:
29]} 73. Ba7 {[%emt 0:00:18]} Nh2 {[%emt 0:02:27]} 74. Be3 {[%emt 0:00:13]} Ng4
{[%emt 0:00:46]} 75. Bd4 {[%emt 0:00:10]} Nh6 {[%emt 0:00:46]} 76. Be3 {
[%emt 0:00:14]} Nf7 {[%emt 0:00:08]} 77. Bd4 {[%emt 0:01:24]} Nd8 {[%emt 0:00:
58]} 78. Ba7 {[%emt 0:00:46]} Ne6 {[%emt 0:01:15]} 79. Bb8 {[%emt 0:00:12]} Nd4
{[%emt 0:01:45]} 80. Ba7 {[%emt 0:00:16]} Kd5 {[%emt 0:00:07]} 81. Bb6 {
[%emt 0:00:51]} f4 {[%emt 0:01:22]} 82. Kc3 {[%emt 0:00:40]} Nc6 {[%emt 0:01:
01]} 83. f3 {[%emt 0:00:29]} Kd6 {[%emt 0:00:54]} 84. Bg1 {[%emt 0:00:21]} Kd5
{[%emt 0:01:31]} 85. Bb6 {[%emt 0:00:29]} Kd6 {[%emt 0:00:26]} 86. Bg1 {
[%emt 0:00:05]} Ke6 {[%emt 0:04:59]} 87. Bc5 {[%emt 0:01:06]} Ne5 {[%emt 0:01:
23]} 88. Kb4 {[%emt 0:00:13]} Nxf3 {[%emt 0:00:11]} 89. Kxb5 {[%emt 0:00:06]}
Kd5 {[%emt 0:00:53]} 90. Bf2 {[%emt 0:00:51]} Ne5 {[%emt 0:00:11]} 91. Ba7 {
[%emt 0:00:52]} Nc6 {[%emt 0:01:09]} 92. Bf2 {[%emt 0:00:19]} f3 {[%emt 0:00:
53]} 93. Bg1 {[%emt 0:00:26]} Nd4+ {[%emt 0:01:58]} 94. Kb4 {[%emt 0:00:22]}
Ke5 {[%emt 0:00:59]} 95. Kc4 {[%emt 0:00:35]} Ne2 {[%emt 0:00:12]} 96. Be3 {
[%emt 0:00:42]} Ke4 {[%emt 0:00:22]} 97. Bf2 {[%emt 0:00:26]} Nf4 {[%emt 0:00:
25]} 98. Kc3 {[%emt 0:00:25]} Nd3 {[%emt 0:00:10]} 99. Bg1 {[%emt 0:00:37]} f2
{[%emt 0:00:39]} 100. Bxf2 {[%emt 0:00:04]} Nxf2 {[%emt 0:00:04]} 1/2-1/2

[Event "EICC 2021"]
[Site "Reykjavik"]
[Date "2021.09.01"]
[Round "7.37"]
[White "Subelj, Jan"]
[Black "Plat, Vojtech"]
[Result "1-0"]
[ECO "C42"]
[WhiteElo "2412"]
[BlackElo "2531"]
[Annotator "ChessBase"]
[PlyCount "67"]
[EventDate "2021.08.26"]
[EventType "swiss"]
[EventCountry "ISL"]
[Tiebreak "Cut1 Buchholz"]
[SourceTitle "playchess.com"]
[Source "ChessBase"]
[SourceQuality "1"]
[TimeControl "40/5400+30:1800+30"]

1. e4 {[%emt 0:00:06]} e5 {[%emt 0:03:38]} 2. Nf3 {[%emt 0:00:28]} Nf6 {
[%emt 0:00:09]} 3. Nxe5 {[%emt 0:01:40]} d6 {[%emt 0:00:04]} 4. Nf3 {[%emt 0:
00:28]} Nxe4 {[%emt 0:00:11]} 5. Nc3 {[%emt 0:01:25]} Nf6 {[%emt 0:00:09]} 6.
d4 {[%emt 0:01:06]} Be7 {[%emt 0:00:03]} 7. Bd3 {[%emt 0:01:20]} O-O {[%emt 0:
00:06]} 8. h3 {[%emt 0:01:38]} Re8 {[%emt 0:00:24]} 9. O-O {[%emt 0:00:14]}
Nbd7 {[%emt 0:00:01]} 10. Ne2 {[%emt 0:05:26]} b6 {[%emt 0:01:42]} 11. Ng3 {
[%emt 0:00:22]} g6 {[%emt 0:06:32]} 12. c4 {[%emt 0:08:42]} d5 {[%emt 0:01:33]}
13. cxd5 {[%emt 0:10:16]} a6 {[%emt 0:15:10]} 14. Qb3 {[%emt 0:08:25]} Bb7 {
[%emt 0:02:33]} 15. d6 {[%emt 0:03:53]} Bxd6 {[%emt 0:00:11]} 16. Bc4 {[%emt 0:
00:06]} Re7 {[%emt 0:00:55]} 17. a4 {[%emt 0:01:39]} Rb8 {[%emt 0:05:39]} 18.
Qd3 {[%emt 0:01:46]} Qc8 {[%emt 0:12:26]} 19. Bg5 {[%emt 0:02:00]} Re8 {
[%emt 0:00:29]} 20. Rae1 {[%emt 0:05:28]} Nd5 {[%emt 0:06:17]} 21. Qb3 {
[%emt 0:02:43]} Rxe1 {[%emt 0:00:55]} 22. Rxe1 {[%emt 0:00:32]} c6 {[%emt 0:00:
04]} 23. Ne4 {[%emt 0:03:03]} Qf8 {[%emt 0:00:41]} 24. Bxd5 {[%emt 0:01:47]}
cxd5 {[%emt 0:00:03]} 25. Nxd6 {[%emt 0:00:12]} Qxd6 {[%emt 0:00:03]} 26. Qe3 {
[%emt 0:05:15]} Rc8 {[%emt 0:00:55]} 27. Be7 {[%emt 0:06:09]} Qc6 {[%emt 0:00:
04]} 28. Qh6 {[%emt 0:00:40]} f6 {[%emt 0:00:32]} 29. Bc5 {[%emt 0:00:41]} Ne5
{[%emt 0:01:22]} 30. Nxe5 {[%emt 0:02:00]} fxe5 {[%emt 0:00:08]} 31. Rxe5 {
[%emt 0:00:11]} bxc5 {[%emt 0:00:26]} 32. Re7 {[%emt 0:00:05]} Qf6 {[%emt 0:00:
02]} 33. Qxh7+ {[%emt 0:00:37]} Kf8 {[%emt 0:00:03]} 34. Re3 {[%emt 0:02:03]}
1-0

[Event "EICC 2021"]
[Site "Reykjavik"]
[Date "2021.09.01"]
[Round "7.38"]
[White "Sokolovsky, Yahli"]
[Black "Petrov, Martin"]
[Result "0-1"]
[ECO "B90"]
[WhiteElo "2415"]
[BlackElo "2521"]
[Annotator "ChessBase"]
[PlyCount "88"]
[EventDate "2021.08.26"]
[EventType "swiss"]
[EventCountry "ISL"]
[Tiebreak "Cut1 Buchholz"]
[SourceTitle "playchess.com"]
[Source "ChessBase"]
[SourceQuality "1"]
[TimeControl "40/5400+30:1800+30"]

1. e4 {[%emt 0:00:03]} c5 {[%emt 0:00:29]} 2. Nf3 {[%emt 0:00:04]} d6 {[%emt 0:
00:13]} 3. d4 {[%emt 0:00:05]} cxd4 {[%emt 0:00:25]} 4. Nxd4 {[%emt 0:00:04]}
Nf6 {[%emt 0:00:11]} 5. Nc3 {[%emt 0:00:02]} a6 {[%emt 0:00:16]} 6. h3 {
[%emt 0:00:08]} g6 {[%emt 0:00:12]} 7. Be3 {[%emt 0:02:13]} Bg7 {[%emt 0:05:51]
} 8. g4 {[%emt 0:01:17]} O-O {[%emt 0:00:19]} 9. Bg2 {[%emt 0:01:54]} Nc6 {
[%emt 0:00:07]} 10. Qd2 {[%emt 0:00:32]} Nxd4 {[%emt 0:00:07]} 11. Bxd4 {
[%emt 0:00:15]} b5 {[%emt 0:00:04]} 12. g5 {[%emt 0:12:13]} Nh5 {[%emt 0:00:08]
} 13. Bxg7 {[%emt 0:02:15]} Nxg7 {[%emt 0:00:09]} 14. e5 {[%emt 0:10:57]} Ra7 {
[%emt 0:00:12]} 15. O-O-O {[%emt 0:01:51]} Rd7 {[%emt 0:00:06]} 16. Qe2 {
[%emt 0:11:40]} Ne6 {[%emt 0:17:55]} 17. Qe3 {[%emt 0:02:41]} dxe5 {[%emt 0:20:
08]} 18. Rxd7 {[%emt 0:14:41]} Bxd7 {[%emt 0:00:20]} 19. Rd1 {[%emt 0:00:19]}
f6 {[%emt 0:09:44]} 20. Nd5 {[%emt 0:02:04]} Qe8 {[%emt 0:09:51]} 21. Qa3 {
[%emt 0:10:47]} fxg5 {[%emt 0:04:32]} 22. Qxe7 {[%emt 0:06:32]} Kh8 {[%emt 0:
04:25]} 23. Qd6 {[%emt 0:02:50]} Rxf2 {[%emt 0:02:57]} 24. Nb6 {[%emt 0:05:36]}
Rxg2 {[%emt 0:11:21]} 25. Nxd7 {[%emt 0:00:30]} Rf2 {[%emt 0:04:33]} 26. Nxe5 {
[%emt 0:06:27]} Re2 {[%emt 0:03:01]} 27. Rf1 {[%emt 0:04:36]} Nf4 {[%emt 0:01:
19]} 28. Qf6+ {[%emt 0:00:55]} Kg8 {[%emt 0:00:04]} 29. Rd1 {[%emt 0:00:23]}
Nh5 {[%emt 0:02:34]} 30. Ng4 {[%emt 0:01:04]} Nxf6 {[%emt 0:02:29]} 31. Nxf6+ {
[%emt 0:00:01]} Kf7 {[%emt 0:00:38]} 32. Nxe8 {[%emt 0:00:02]} Kxe8 {[%emt 0:
00:06]} 33. Rd6 {[%emt 0:01:24]} Re3 {[%emt 0:00:35]} 34. Rxa6 {[%emt 0:00:06]}
Rxh3 {[%emt 0:00:04]} 35. Ra5 {[%emt 0:00:40]} g4 {[%emt 0:00:47]} 36. Rxb5 {
[%emt 0:00:07]} g3 {[%emt 0:00:03]} 37. Rg5 {[%emt 0:01:07]} h6 {[%emt 0:01:48]
} 38. Rxg6 {[%emt 0:00:32]} Kf7 {[%emt 0:00:04]} 39. Rg4 {[%emt 0:00:03]} h5 {
[%emt 0:00:04]} 40. Rg5 {[%emt 0:00:18]} h4 {[%emt 0:00:15]} 41. b4 {[%emt 0:
20:52]} Rh1+ {[%emt 0:05:15]} 42. Kd2 {[%emt 0:03:30]} Rg1 {[%emt 0:01:26]} 43.
Rh5 {[%emt 0:03:54]} g2 {[%emt 0:00:13]} 44. Rxh4 {[%emt 0:00:03]} Rd1+ {
[%emt 0:00:13]} 0-1

[Event "EICC 2021"]
[Site "Reykjavik"]
[Date "2021.09.01"]
[Round "7.39"]
[White "Hjartarson, Johann"]
[Black "Stefansson, Vignir Vatnar"]
[Result "1/2-1/2"]
[ECO "A18"]
[WhiteElo "2519"]
[BlackElo "2371"]
[Annotator "ChessBase"]
[PlyCount "65"]
[EventDate "2021.08.26"]
[EventType "swiss"]
[EventCountry "ISL"]
[Tiebreak "Cut1 Buchholz"]
[SourceTitle "playchess.com"]
[Source "ChessBase"]
[SourceQuality "1"]
[TimeControl "40/5400+30:1800+30"]

1. c4 {[%emt 0:04:33]} e6 {[%emt 0:00:34]} 2. Nc3 {[%emt 0:00:54]} Nf6 {
[%emt 0:00:29]} 3. e4 {[%emt 0:01:02]} d5 {[%emt 0:00:06]} 4. e5 {[%emt 0:00:
07]} d4 {[%emt 0:00:05]} 5. exf6 {[%emt 0:00:30]} dxc3 {[%emt 0:00:06]} 6. bxc3
{[%emt 0:00:05]} Qxf6 {[%emt 0:00:08]} 7. Nf3 {[%emt 0:01:10]} b6 {[%emt 0:06:
38]} 8. d4 {[%emt 0:05:18]} Bb7 {[%emt 0:00:47]} 9. Bd3 {[%emt 0:00:12]} h6 {
[%emt 0:00:07]} 10. O-O {[%emt 0:01:01]} Bd6 {[%emt 0:00:35]} 11. Nd2 {[%emt 0:
08:03]} O-O {[%emt 0:09:30]} 12. Qe2 {[%emt 0:03:24]} Nd7 {[%emt 0:08:55]} 13.
Rb1 {[%emt 0:01:30]} Qh4 {[%emt 0:07:38]} 14. g3 {[%emt 0:02:45]} Qh3 {[%emt 0:
03:01]} 15. f3 {[%emt 0:04:52]} Nf6 {[%emt 0:13:48]} 16. c5 {[%emt 0:05:35]}
Be7 {[%emt 0:01:27]} 17. Nc4 {[%emt 0:00:15]} Ba6 {[%emt 0:06:28]} 18. c6 {
[%emt 0:05:04]} Rfd8 {[%emt 0:02:09]} 19. Bd2 {[%emt 0:09:07]} Qh5 {[%emt 0:04:
33]} 20. Qg2 {[%emt 0:08:28]} Qd5 {[%emt 0:04:17]} 21. Ne3 {[%emt 0:07:07]} Qa5
{[%emt 0:01:09]} 22. Qe2 {[%emt 0:06:46]} Bxd3 {[%emt 0:01:05]} 23. Qxd3 {
[%emt 0:00:03]} Qa4 {[%emt 0:02:04]} 24. Qc4 {[%emt 0:00:24]} Qxc4 {[%emt 0:00:
07]} 25. Nxc4 {[%emt 0:00:04]} Nd5 {[%emt 0:00:12]} 26. f4 {[%emt 0:06:26]} Bd6
{[%emt 0:02:19]} 27. f5 {[%emt 0:00:35]} exf5 {[%emt 0:05:29]} 28. Nxd6 {
[%emt 0:01:13]} Rxd6 {[%emt 0:00:46]} 29. c4 {[%emt 0:00:29]} Ne7 {[%emt 0:00:
27]} 30. Bb4 {[%emt 0:02:00]} Nxc6 {[%emt 0:01:31]} 31. Bxd6 {[%emt 0:00:06]}
cxd6 {[%emt 0:00:02]} 32. Rbd1 {[%emt 0:04:23]} g6 {[%emt 0:01:29]} 33. c5 {
[%emt 0:02:36]} 1/2-1/2

[Event "EICC 2021"]
[Site "Reykjavik"]
[Date "2021.09.01"]
[Round "7.40"]
[White "Steingrimsson, Hedinn"]
[Black "Aizenberg, Benny"]
[Result "1/2-1/2"]
[ECO "A37"]
[WhiteElo "2519"]
[BlackElo "2309"]
[Annotator "ChessBase"]
[PlyCount "86"]
[EventDate "2021.08.26"]
[EventType "swiss"]
[EventCountry "ISL"]
[Tiebreak "Cut1 Buchholz"]
[SourceTitle "playchess.com"]
[Source "ChessBase"]
[SourceQuality "1"]
[TimeControl "40/5400+30:1800+30"]

1. Nf3 {[%emt 0:00:03]} c5 {[%emt 0:00:05]} 2. c4 {[%emt 0:00:09]} Nc6 {
[%emt 0:00:04]} 3. Nc3 {[%emt 0:03:21]} e5 {[%emt 0:00:02]} 4. g3 {[%emt 0:01:
12]} g6 {[%emt 0:00:23]} 5. Bg2 {[%emt 0:00:03]} Bg7 {[%emt 0:00:06]} 6. O-O {
[%emt 0:00:14]} Nge7 {[%emt 0:00:05]} 7. a3 {[%emt 0:00:05]} O-O {[%emt 0:01:
14]} 8. Rb1 {[%emt 0:00:08]} a5 {[%emt 0:00:08]} 9. Ne1 {[%emt 0:00:02]} d6 {
[%emt 0:00:10]} 10. Nc2 {[%emt 0:00:02]} Be6 {[%emt 0:02:34]} 11. Ne3 {[%emt 0:
00:03]} Rb8 {[%emt 0:07:55]} 12. d3 {[%emt 0:03:27]} Nd4 {[%emt 0:06:06]} 13.
Ned5 {[%emt 0:02:19]} Nxd5 {[%emt 0:02:42]} 14. Nxd5 {[%emt 0:11:05]} b5 {
[%emt 0:04:44]} 15. e3 {[%emt 0:02:03]} Nf5 {[%emt 0:00:24]} 16. b4 {[%emt 0:
06:43]} bxc4 {[%emt 0:05:32]} 17. dxc4 {[%emt 0:00:22]} cxb4 {[%emt 0:05:09]}
18. axb4 {[%emt 0:00:06]} axb4 {[%emt 0:06:44]} 19. Bd2 {[%emt 0:01:30]} Ne7 {
[%emt 0:06:38]} 20. Bxb4 {[%emt 0:01:23]} Nxd5 {[%emt 0:02:39]} 21. Bxd5 {
[%emt 0:08:29]} Bf5 {[%emt 0:01:05]} 22. e4 {[%emt 0:02:31]} Bh3 {[%emt 0:00:
21]} 23. Re1 {[%emt 0:00:04]} Qf6 {[%emt 0:07:16]} 24. Qd3 {[%emt 0:07:46]} Rb6
{[%emt 0:02:27]} 25. Ba3 {[%emt 0:06:44]} Rfb8 {[%emt 0:01:49]} 26. Rb5 {
[%emt 0:00:46]} Rxb5 {[%emt 0:03:18]} 27. cxb5 {[%emt 0:00:05]} Bf8 {[%emt 0:
00:15]} 28. Rb1 {[%emt 0:05:00]} Rb6 {[%emt 0:08:33]} 29. Bc1 {[%emt 0:07:52]}
Be7 {[%emt 0:03:21]} 30. Qe2 {[%emt 0:00:00]} Bd8 {[%emt 0:03:31]} 31. Be3 {
[%emt 0:00:00]} h5 {[%emt 0:01:29]} 32. f3 {[%emt 0:15:44]} Qe7 {[%emt 0:01:04]
} 33. Qc4 {[%emt 0:08:12]} Qf6 {[%emt 0:01:57]} 34. Kf2 {[%emt 0:00:26]} Bg4 {
[%emt 0:03:02]} 35. Qe2 {[%emt 0:00:02]} h4 {[%emt 0:00:32]} 36. Kg1 {[%emt 0:
06:56]} Bd7 {[%emt 0:00:57]} 37. g4 {[%emt 0:01:43]} Rxb5 {[%emt 0:04:30]} 38.
Rxb5 {[%emt 0:00:02]} Bxb5 {[%emt 0:00:08]} 39. Qxb5 {[%emt 0:00:08]} Qxf3 {
[%emt 0:00:01]} 40. Bf2 {[%emt 0:02:30]} Qxg4+ {[%emt 0:02:30]} 41. Kf1 {
[%emt 0:30:20]} Qd1+ {[%emt 0:30:33]} 42. Be1 {[%emt 0:00:00]} Qf3+ {[%emt 0:
00:00]} 43. Bf2 {[%emt 0:00:00]} Qd1+ {[%emt 0:00:00]} 1/2-1/2

[Event "EICC 2021"]
[Site "Reykjavik"]
[Date "2021.09.02"]
[Round "8.35"]
[White "Hillarp Persson, Tiger"]
[Black "D`Costa, Lorin"]
[Result "1-0"]
[ECO "D12"]
[WhiteElo "2543"]
[BlackElo "2381"]
[Annotator "ChessBase"]
[PlyCount "59"]
[EventDate "2021.08.26"]
[EventType "swiss"]
[EventCountry "ISL"]
[Tiebreak "Cut1 Buchholz"]
[SourceTitle "playchess.com"]
[Source "ChessBase"]
[SourceQuality "1"]
[TimeControl "40/5400+30:1800+30"]

1. d4 {[%emt 0:00:02]} d5 {[%emt 0:02:17]} 2. c4 {[%emt 0:01:55]} c6 {[%emt 0:
00:19]} 3. Nf3 {[%emt 0:00:27]} Nf6 {[%emt 0:00:20]} 4. e3 {[%emt 0:00:47]} Bf5
{[%emt 0:00:45]} 5. Nc3 {[%emt 0:00:47]} e6 {[%emt 0:00:24]} 6. Nh4 {[%emt 0:
00:37]} Be4 {[%emt 0:01:14]} 7. f3 {[%emt 0:00:44]} Bg6 {[%emt 0:00:14]} 8. Qb3
{[%emt 0:00:21]} Qc7 {[%emt 0:00:38]} 9. Bd2 {[%emt 0:09:10]} Be7 {[%emt 0:00:
27]} 10. Nxg6 {[%emt 0:20:11]} hxg6 {[%emt 0:01:01]} 11. O-O-O {[%emt 0:01:15]}
dxc4 {[%emt 0:22:16]} 12. Qxc4 {[%emt 0:04:07]} a6 {[%emt 0:03:51]} 13. Kb1 {
[%emt 0:17:03]} b5 {[%emt 0:06:51]} 14. Qe2 {[%emt 0:00:29]} c5 {[%emt 0:31:57]
} 15. dxc5 {[%emt 0:01:47]} Nc6 {[%emt 0:03:25]} 16. Rc1 {[%emt 0:00:51]} O-O {
[%emt 0:06:39]} 17. g4 {[%emt 0:00:44]} Rfd8 {[%emt 0:01:43]} 18. g5 {[%emt 0:
01:25]} Nh5 {[%emt 0:03:53]} 19. Ne4 {[%emt 0:06:18]} Rd5 {[%emt 0:02:55]} 20.
f4 {[%emt 0:08:31]} e5 {[%emt 0:03:40]} 21. Bg2 {[%emt 0:09:07]} exf4 {[%emt 0:
01:23]} 22. exf4 {[%emt 0:00:10]} Rad8 {[%emt 0:01:00]} 23. Rhf1 {[%emt 0:08:
51]} Nd4 {[%emt 0:02:50]} 24. Qf2 {[%emt 0:00:48]} Nf5 {[%emt 0:00:48]} 25. Nd6
{[%emt 0:01:43]} Rd4 {[%emt 0:01:17]} 26. Be3 {[%emt 0:03:58]} Nxe3 {[%emt 0:
00:34]} 27. Qxe3 {[%emt 0:00:07]} Bxd6 {[%emt 0:00:30]} 28. Qxd4 {[%emt 0:00:
10]} Bxf4 {[%emt 0:00:17]} 29. Qe4 {[%emt 0:01:00]} Bxc1 {[%emt 0:00:28]} 30.
Rxc1 {[%emt 0:00:08]} 1-0